bitfinex-derivatives/quotes_ETHF0:USTF0_20251025
["timestamp","ask_amount","ask_price","bid_price","bid_amount"]
[1761376862907,0.3478,3935.3,3935.2,9.40636]
[1761376863111,0.7813,3935.3,3935.2,9.40636]
[1761376863712,0.7813,3935.3,3935.2,10.77305436]
[1761376864515,0.5626,3935.3,3935.2,9.40636]
[1761376866309,0.7813,3935.3,3935.2,9.40636]
[1761376866614,0.5626,3935.3,3935.2,9.40636]
[1761376866810,0.3478,3935.3,3935.2,9.40636]
[1761376869519,0.1356,3935.5,3935.4,0.45733]
[1761376869717,0.1356,3935.5,3935.4,5.48706802]
[1761376870019,0.1356,3936.0,3935.9,0.45728]
[1761376870221,0.1356,3936.0,3935.9,12.61608]
[1761376870418,0.1356,3936.0,3935.9,14.43789437]
[1761376870618,0.4582,3936.0,3935.9,14.43789437]
[1761376870821,0.4582,3936.0,3935.9,12.61608]
[1761376871220,0.4582,3936.0,3935.9,14.43655223]
[1761376873511,0.1356,3936.5,3936.4,0.45722]
[1761376873722,0.1356,3936.5,3936.4,12.62302]
[1761376874419,0.13739176,3936.5,3936.4,12.62302]
[1761376875524,0.91629176,3936.5,3936.4,12.62302]
[1761376875917,0.45999176,3936.5,3936.4,12.62302]
[1761376877220,0.69589176,3936.5,3936.4,12.62302]
[1761376877422,0.91629176,3936.5,3936.4,12.62302]
[1761376880123,0.91629176,3936.5,3936.4,13.98303126]
[1761376880924,0.91629176,3936.5,3936.4,12.1678]
[1761376881128,0.91629176,3936.5,3936.4,13.30511859]
[1761376881332,0.91629176,3936.5,3936.4,12.62502]
[1761376881923,0.91629176,3936.5,3936.4,12.1678]
[1761376882130,0.91629176,3936.5,3936.4,12.84797833]
[1761376884326,0.91629176,3936.5,3936.4,3.88797833]
[1761376884536,0.91629176,3936.5,3936.4,12.84597833]
[1761376885931,0.91629176,3936.5,3936.4,12.1658]
[1761376886231,0.91629176,3936.5,3936.4,12.84597833]
[1761376886630,0.91629176,3936.5,3936.4,3.2078]
[1761376886932,0.91629176,3936.5,3936.4,12.1648]
[1761376888133,0.91629176,3936.5,3936.4,3.2078]
[1761376888328,0.91629176,3936.5,3936.4,12.1648]
[1761376890435,0.3226,3936.4,3936.1,0.68017833]
[1761376890629,0.9098,3936.0,3935.9,0.68017833]
[1761376890940,0.9098,3936.0,3935.9,9.0719]
[1761376891332,0.9098,3936.0,3935.9,9.1759]
[1761376892432,0.7789,3936.0,3935.9,10.17588]
[1761376892634,0.9098,3936.0,3935.9,10.17588]
[1761376892839,0.5872,3936.0,3935.8,0.68017833]
[1761376893036,0.5872,3936.0,3935.6,0.90679812]
[1761376893037,0.3226,3935.8,3935.6,0.68017833]
[1761376893337,0.7789,3935.7,3935.6,0.68017833]
[1761376893836,0.7789,3935.7,3935.6,0.90107833]
[1761376894035,0.7789,3935.7,3935.6,9.1819]
[1761376894235,0.7789,3935.7,3935.6,9.86207833]
[1761376894632,0.7789,3935.7,3935.5,3.2078]
[1761376894633,0.3226,3935.6,3935.5,3.88797833]
[1761376894833,0.7789,3935.6,3935.5,12.1698]
[1761376895531,0.7789,3935.6,3935.5,8.962]
[1761376895936,0.7789,3935.6,3934.9,1.36183105]
[1761376895937,0.4563,3935.0,3934.9,0.00181979]
[1761376896128,0.7789,3935.0,3934.9,0.76541979]
[1761376896729,0.7789,3935.0,3934.9,3.97321979]
[1761376898231,0.5585,3935.0,3934.9,3.97321979]
[1761376900231,0.3486,3935.2,3935.1,0.3423]
[1761376900436,0.5684,3935.2,3935.1,9.7463]
[1761376901233,0.1309,3935.5,3935.3,0.7853]
[1761376901234,0.5684,3935.4,3935.3,0.7853]
[1761376901437,0.5684,3935.4,3935.3,3.9931]
[1761376903842,0.3486,3935.4,3935.3,3.9931]
[1761376909450,0.7815,3935.9,3935.8,0.5582]
[1761376909643,0.7815,3935.9,3935.8,9.5142]
[1761376909948,0.7815,3935.9,3935.8,9.1719]
[1761376910150,0.7815,3935.9,3935.8,9.7413]
[1761376910652,0.5684,3935.9,3935.8,9.7413]
[1761376912546,2.26028627,3938.1,3936.6,3.2078]
[1761376912847,0.1293,3939.5,3938.4,0.45698]
[1761376913041,0.4329,3939.3,3939.2,0.5582]
[1761376913245,0.4329,3939.3,3939.2,3.5423]
[1761376913447,0.43469852,3939.3,3939.2,4.2453884]
[1761376913652,0.43469852,3939.3,3939.2,5.15218652]
[1761376914251,0.43469852,3939.3,3939.2,4.2453884]
[1761376914855,0.22159852,3939.3,3939.2,4.2453884]
[1761376915662,0.00179852,3939.3,3939.2,4.2453884]
[1761376919262,0.22159852,3939.3,3939.2,4.2453884]
[1761376920467,0.79109852,3939.3,3939.2,4.2453884]
[1761376922162,0.79109852,3939.3,3939.2,1.4883884]
[1761376922469,0.79109852,3939.3,3939.2,10.5163884]
[1761376924470,0.79109852,3939.3,3939.2,10.5123884]
[1761376924662,0.79109852,3939.3,3939.2,9.7270884]
[1761376924868,0.79109852,3939.3,3939.2,0.0028246]
[1761376932775,8.79109852,3939.3,3939.2,0.0028246]
[1761376935271,8.79109852,3939.3,3939.2,0.72927304]
[1761376936881,0.79109852,3939.3,3939.2,0.72927304]
[1761376939176,0.8862,3939.0,3938.9,0.90679812]
[1761376939374,0.8862,3939.0,3938.8,0.90679812]
[1761376939576,0.7525,3938.9,3938.8,0.90679812]
[1761376940180,0.7525,3938.9,3938.8,0.00286702]
[1761376940480,0.7525,3938.9,3938.8,1.68957828]
[1761376940879,0.7525,3938.9,3938.8,1.90427828]
[1761376941080,0.7525,3938.9,3938.8,1.68957828]
[1761376941279,0.7525,3938.9,3938.8,0.32956702]
[1761376942483,0.7525,3938.9,3938.8,2.14469817]
[1761376943483,0.7525,3938.9,3938.8,2.35939817]
[1761376944584,0.7525,3938.9,3938.8,1.81799817]
[1761376945186,0.7525,3938.9,3938.8,2.14469817]
[1761376945483,0.7525,3938.9,3938.8,1.81799817]
[1761376945684,0.7525,3938.9,3938.8,0.00286702]
[1761376946183,0.7525,3938.9,3938.8,1.81799817]
[1761376946584,0.7525,3938.9,3938.8,0.00286702]
[1761376950386,8.7525,3938.9,3938.8,0.00286702]
[1761376950594,0.7525,3938.9,3938.8,0.00286702]
[1761376950794,0.7525,3938.9,3938.8,0.9110775]
[1761376951292,0.7525,3938.9,3938.8,1.60577483]
[1761376951685,0.7525,3938.9,3938.8,0.69756435]
[1761376954788,8.7525,3938.9,3938.8,0.69756435]
[1761376955986,8.7525,3938.9,3938.8,1.37896806]
[1761376956387,8.7525,3938.9,3938.8,0.69756435]
[1761376957695,11.9603,3938.9,3938.8,0.69756435]
[1761376957892,52.7603,3938.9,3938.8,0.69756435]
[1761376959089,0.437,3938.7,3938.4,0.90821048]
[1761376959293,44.0078,3938.9,3938.2,0.90821048]
[1761376959294,0.437,3938.3,3938.2,0.90821048]
[1761376959489,0.765,3938.3,3938.2,0.90821048]
[1761376960101,0.765,3938.3,3938.2,0.91051549]
[1761376961303,0.765,3938.3,3938.2,0.00230501]
[1761376964605,3.9728,3938.3,3938.2,0.00230501]
[1761376969897,11.9728,3938.3,3937.6,0.90821048]
[1761376970102,0.765,3937.8,3937.7,0.2345]
[1761376970704,0.765,3937.8,3937.7,0.7812]
[1761376970910,0.765,3937.8,3937.7,0.78313638]
[1761376971111,0.765,3937.8,3937.7,1.46507485]
[1761376972616,0.437,3937.8,3937.7,1.46507485]
[1761376972817,0.2134,3937.8,3937.7,1.46507485]
[1761376973313,0.2134,3938.0,3937.8,0.3317]
[1761376973528,0.2134,3938.0,3937.9,1.46313847]
[1761376973913,0.5414,3938.0,3937.9,1.46313847]
[1761376974113,0.2134,3938.0,3937.9,1.46313847]
[1761376976024,0.328,3938.2,3937.9,1.46313847]
[1761376976223,0.5414,3938.2,3938.1,0.7812]
[1761376976424,0.5414,3938.2,3938.1,1.46313847]
[1761376976618,0.765,3938.2,3938.1,1.46313847]
[1761376977125,3.9728,3938.2,3938.1,1.46313847]
[1761376980423,0.765,3938.2,3938.1,1.46313847]
[1761376980624,3.9728,3938.2,3938.1,1.46313847]
[1761376981525,0.765,3938.2,3938.1,1.46313847]
[1761376981728,3.9728,3938.2,3938.1,1.46313847]
[1761376986526,0.765,3938.2,3938.1,1.46313847]
[1761376986730,3.9728,3938.2,3938.1,1.46313847]
[1761376987529,0.2134,3938.2,3938.1,1.46313847]
[1761376987718,0.2134,3938.2,3938.1,2.37134895]
[1761376988124,0.56,3938.4,3938.2,0.3345]
[1761376988322,0.56,3938.4,3938.3,1.47533847]
[1761376990320,0.2221,3938.4,3938.3,1.47533847]
[1761376991032,0.5712,3938.4,3938.3,1.47533847]
[1761376991827,0.2221,3938.4,3938.3,1.47533847]
[1761376992026,12.1918,3938.6,3938.5,0.9249]
[1761376992027,3.2078,3938.6,3938.5,0.9249]
[1761376992230,3.2078,3938.6,3938.5,1.60683847]
[1761376993630,3.2078,3939.0,3938.9,0.7934]
[1761376993832,3.2078,3939.0,3938.9,1.47533847]
[1761376994436,6.7121,3939.1,3939.0,0.9249]
[1761376994630,7.0612,3939.1,3939.0,1.60683847]
[1761376994827,7.2779,3939.1,3939.0,1.60683847]
[1761376995634,0.7879,3939.1,3939.0,1.60683847]
[1761376997635,0.7879,3939.1,3939.0,1.60041384]
[1761376998828,0.00179852,3939.3,3939.2,0.7934]
[1761376999028,0.00179852,3939.3,3939.2,1.46891384]
[1761376999234,0.00179852,3939.3,3939.2,2.37787603]
[1761376999433,0.00179852,3939.3,3939.2,1.46891384]
[1761376999631,0.00179852,3939.3,3939.2,2.37787603]
[1761377000032,0.00179852,3939.3,3939.2,1.46891384]
[1761377000427,3.2078,3939.8,3939.5,0.1315]
[1761377000633,3.4299,3940.6,3940.5,0.9249]
[1761377000839,3.4299,3940.6,3940.5,1.60041384]
[1761377001534,3.21078874,3940.6,3940.5,1.6006908]
[1761377001736,0.00298874,3940.6,3940.5,1.6006908]
[1761377003237,0.79088874,3940.6,3940.5,1.4691908]
[1761377003439,3.99868874,3940.6,3940.5,0.56583091]
[1761377003940,3.21078874,3940.6,3940.5,0.92733091]
[1761377004340,3.43288874,3940.6,3940.5,0.92733091]
[1761377004941,0.00298874,3940.6,3940.5,0.92733091]
[1761377005348,0.79088874,3940.6,3940.5,0.92733091]
[1761377005644,0.79088874,3940.6,3940.5,0.79583091]
[1761377006139,0.79088874,3940.6,3940.5,0.92733091]
[1761377006338,0.22508874,3940.6,3940.5,0.92733091]
[1761377006940,0.79088874,3940.6,3940.5,0.92733091]
[1761377008047,3.99868874,3940.6,3940.5,0.56583091]
[1761377010349,3.99868874,3940.6,3940.5,0.92733091]
[1761377010850,3.99868874,3940.6,3940.5,0.79583091]
[1761377014052,3.99868874,3940.6,3940.5,0.56583091]
[1761377015153,3.99868874,3940.6,3940.5,0.33693091]
[1761377015350,3.99868874,3940.6,3940.5,0.56583091]
[1761377015555,3.99868874,3940.6,3940.5,0.79583091]
[1761377015853,3.21078874,3940.6,3940.5,0.92733091]
[1761377016051,3.43288874,3940.6,3940.5,0.92733091]
[1761377016456,3.78198874,3940.6,3940.5,0.92733091]
[1761377016953,3.99868874,3940.6,3940.5,0.92733091]
[1761377017248,3.43288874,3940.6,3940.5,0.92733091]
[1761377017454,3.78198874,3940.6,3940.5,0.92733091]
[1761377018156,3.99868874,3940.6,3940.5,0.92733091]
[1761377018450,0.44178874,3940.6,3940.5,0.92733091]
[1761377018952,0.77068874,3940.6,3940.5,0.92733091]
[1761377019148,0.55398874,3940.6,3940.5,0.79583091]
[1761377019357,3.98408874,3940.6,3940.5,0.32533091]
[1761377019561,3.98408874,3940.6,3940.5,0.55683091]
[1761377019853,3.98408874,3940.6,3940.5,0.79243091]
[1761377020164,3.21078874,3940.6,3940.5,0.92213091]
[1761377020452,0.00298874,3940.6,3940.5,1.5939172]
[1761377021758,0.21748874,3940.6,3940.5,1.5939172]
[1761377023056,0.00298874,3940.6,3940.5,1.5939172]
[1761377023555,0.00298874,3940.6,3940.5,2.49957249]
[1761377026361,0.00298874,3940.6,3940.5,1.5939172]
[1761377028161,0.21748874,3940.6,3940.5,1.5939172]
[1761377028960,0.00298874,3940.6,3940.5,1.5939172]
[1761377031059,0.76868874,3940.6,3940.5,1.5939172]
[1761377031661,0.43978874,3940.6,3940.5,1.5939172]
[1761377031867,0.21748874,3940.6,3940.5,1.5939172]
[1761377032964,0.76868874,3940.6,3940.5,1.4642172]
[1761377033155,0.00298874,3940.6,3940.5,1.5939172]
[1761377041070,0.56528874,3940.6,3940.5,1.5939172]
[1761377041573,0.79968874,3940.6,3940.5,1.5939172]
[1761377041960,0.00298874,3940.6,3940.5,1.5939172]
[1761377042165,0.79968874,3940.6,3940.5,1.5939172]
[1761377042569,0.23018874,3940.6,3940.5,1.5939172]
[1761377042870,0.00298874,3940.6,3940.5,1.5939172]
[1761377044667,0.00298874,3940.6,3940.5,10.6079172]
[1761377046370,0.00298874,3940.6,3940.5,18.6079172]
[1761377046575,3.2078,3941.1,3941.0,0.9127]
[1761377046776,3.2078,3941.1,3941.0,1.58448629]
[1761377047165,3.2078,3941.1,3941.0,2.94624406]
[1761377047680,3.21066056,3941.1,3941.0,2.94624406]
[1761377049674,0.00286056,3941.1,3941.0,11.95624406]
[1761377049976,0.00286056,3941.1,3941.0,13.80228629]
[1761377050572,0.00286056,3941.1,3941.0,4.79228629]
[1761377050776,0.00286056,3941.1,3941.0,13.80228629]
[1761377051674,0.00286056,3941.1,3941.0,1.58448629]
[1761377051878,0.00286056,3941.1,3941.0,10.59448629]
[1761377054180,0.00286056,3941.1,3941.0,10.59148629]
[1761377054580,0.00286056,3941.1,3941.0,13.79928629]
[1761377054981,4.11367401,3941.4,3941.0,13.23698629]
[1761377055175,3.19562443,3944.1,3941.0,13.23698629]
[1761377055176,1.82422569,3944.8,3943.9,0.2217]
[1761377055382,4.56517776,3945.8,3943.0,0.1341]
[1761377055383,8.11437401,3944.7,3944.6,3.2078]
[1761377055686,0.7929,3943.4,3943.3,3.2078]
[1761377055890,2.26400759,3943.1,3942.8,0.90354128]
[1761377056091,0.7929,3942.9,3942.8,0.45282245]
[1761377056284,0.56238323,3943.1,3942.8,1.35636373]
[1761377056583,3.05690759,3942.9,3942.8,0.22382245]
[1761377057282,0.00198323,3943.1,3942.8,9.56482245]
[1761377057581,0.00198323,3943.1,3943.0,3.6585]
[1761377057784,1e-08,3943.1,3943.0,4.0087]
[1761377057985,0.56040001,3943.1,3943.0,4.0087]
[1761377059191,0.3359,3943.4,3943.3,0.8009]
[1761377059391,0.5604,3943.8,3943.7,0.4507]
[1761377059890,0.7929,3943.8,3943.7,0.8009]
[1761377060090,0.7929,3944.3,3944.2,0.2217]
[1761377060278,0.3359,3944.2,3943.8,0.5719]
[1761377060482,0.7929,3943.6,3943.5,3.4295]
[1761377060784,0.3359,3943.9,3943.6,0.3502]
[1761377060984,0.5604,3943.9,3943.8,0.8009]
[1761377061377,2.82440759,3943.9,3943.8,0.8009]
[1761377063684,0.5604,3943.9,3943.8,9.9319]
[1761377063892,0.457,3944.2,3944.1,0.2217]
[1761377064085,0.457,3944.2,3944.0,0.3502]
[1761377064284,0.457,3944.2,3944.0,0.8009]
[1761377064493,3.05690759,3944.1,3944.0,0.8009]
[1761377064686,0.7929,3944.1,3944.0,0.8009]
[1761377065693,0.3359,3944.2,3944.0,0.8009]
[1761377065998,0.2245,3944.2,3944.0,0.8009]
[1761377066299,3.05690759,3944.1,3944.0,0.4507]
[1761377066493,0.7929,3944.1,3944.0,0.4507]
[1761377066996,0.9253,3944.0,3943.9,3.6585]
[1761377067292,3.18930759,3944.0,3943.9,3.6585]
[1761377067883,3.18930759,3944.0,3943.9,3.4295]
[1761377069196,3.18930759,3944.0,3943.9,3.6585]
[1761377069394,3.18930759,3944.0,3943.9,3.2078]
[1761377069598,3.18930759,3944.0,3943.1,0.3502]
[1761377069599,0.5604,3943.2,3943.1,0.8009]
[1761377069792,0.5604,3943.2,3943.1,1.47769898]
[1761377069993,0.457,3943.9,3943.8,0.2217]
[1761377070493,3.05690759,3943.9,3943.8,0.2217]
[1761377072892,3.05690759,3943.9,3943.4,0.8009]
[1761377072893,0.1324,3943.5,3943.4,0.8009]
[1761377073096,0.7929,3943.2,3943.1,0.8009]
[1761377073399,0.7929,3943.2,3943.1,1.47494806]
[1761377073597,0.5604,3943.2,3943.1,1.47494806]
[1761377074790,0.7929,3943.2,3943.1,1.12474806]
[1761377074987,0.7929,3943.1,3943.0,3.2078]
[1761377075198,3.05690759,3943.1,3943.0,3.4295]
[1761377076097,3.05690759,3943.1,3943.0,0.2217]
[1761377077403,0.7929,3942.9,3942.8,0.45282245]
[1761377077704,0.7929,3942.9,3942.8,1.12862383]
[1761377077998,3.05690759,3942.9,3942.8,1.12862383]
[1761377078197,0.7253,3943.3,3942.9,0.514]
[1761377078401,0.7253,3943.2,3943.1,1.0839]
[1761377078603,1.065,3943.2,3943.1,1.0839]
[1761377078799,3.32900759,3943.2,3943.1,1.0839]
[1761377079399,1.065,3942.9,3942.8,0.22112245]
[1761377079605,1.065,3942.9,3942.8,0.89760658]
[1761377079904,3.32900759,3942.9,3942.8,0.89760658]
[1761377081305,3.32900759,3942.9,3942.8,1.76250658]
[1761377082196,3.32900759,3942.9,3942.8,1.76308121]
[1761377082800,2.98930759,3942.9,3942.8,1.76308121]
[1761377082999,2.77250759,3942.9,3942.8,1.76308121]
[1761377083198,2.98930759,3942.9,3942.8,1.76308121]
[1761377083900,0.7253,3942.9,3942.8,1.76308121]
[1761377084501,0.6409,3943.5,3943.4,0.219]
[1761377084698,1.1974,3943.5,3943.4,1.0839]
[1761377084895,3.46140759,3943.5,3943.4,1.0839]
[1761377085094,3.46140759,3943.5,3943.4,1.76234192]
[1761377085305,3.46140759,3943.5,3943.4,1.76228833]
[1761377087703,3.46140759,3943.5,3943.4,0.67838833]
[1761377089202,3.46140759,3943.5,3943.4,0.89738833]
[1761377089815,3.46140759,3943.5,3943.4,0.67838833]
[1761377091705,3.46140759,3943.5,3943.4,0.89738833]
[1761377093618,1.1974,3943.5,3943.4,0.89738833]
[1761377093816,3.46140759,3943.5,3943.4,0.67838833]
[1761377094421,3.46140759,3943.5,3943.4,0.89738833]
[1761377095316,0.5085,3943.5,3943.4,1.76228833]
[1761377095815,0.7253,3943.5,3943.4,1.76228833]
[1761377096310,0.7253,3943.5,3943.4,4.97008833]
[1761377096704,0.7253,3943.9,3943.5,0.514]
[1761377096917,1.065,3943.9,3943.8,0.733]
[1761377097113,1.065,3943.9,3943.8,1.76228833]
[1761377097314,3.32900759,3943.9,3943.8,1.76228833]
[1761377097604,1.065,3943.9,3943.8,1.76228833]
[1761377097809,3.32900759,3943.9,3943.8,1.76228833]
[1761377098109,3.32900759,3943.9,3943.8,0.67838833]
[1761377099909,0.3168,3943.3,3943.2,0.3325]
[1761377100117,1.1373,3943.3,3943.2,1.00188832]
[1761377100419,3.40130759,3943.3,3943.2,0.66938832]
[1761377100718,6.60910759,3943.3,3943.2,0.66938832]
[1761377100921,5.97770759,3943.3,3943.2,0.66938832]
[1761377101220,6.60910759,3943.3,3943.2,0.66938832]
[1761377102219,1.1373,3942.9,3942.8,0.00212245]
[1761377102422,1.1373,3942.9,3942.8,0.67206313]
[1761377102721,3.40130759,3942.9,3942.8,0.67206313]
[1761377103319,6.60910759,3942.9,3942.8,0.67206313]
[1761377103619,1.1373,3942.2,3942.1,0.3325]
[1761377103816,1.1373,3942.2,3942.1,1.0027347]
[1761377104118,1.1373,3942.2,3942.1,1.8286347]
[1761377104504,1.1373,3942.2,3942.1,1.8308235]
[1761377105015,1.1373,3942.2,3942.1,2.73436478]
[1761377105016,0.5059,3942.2,3942.1,2.73436478]
[1761377105418,0.8227,3942.2,3942.1,1.8308235]
[1761377105617,1.1373,3942.2,3942.1,1.8308235]
[1761377106815,0.8227,3942.2,3942.1,1.8308235]
[1761377107016,0.5059,3942.2,3942.1,1.8308235]
[1761377108610,0.8227,3942.2,3942.1,1.8308235]
[1761377109212,1.129,3942.2,3942.1,1.0049235]
[1761377109618,3.39300759,3942.2,3942.1,1.0049235]
[1761377110010,3.39300759,3942.2,3942.1,1.4682235]
[1761377111016,3.39300759,3942.2,3942.1,1.7742235]
[1761377111217,3.39300759,3942.2,3942.1,1.0049235]
[1761377112124,3.39300759,3942.2,3942.1,0.6724235]
[1761377113522,3.39300759,3942.2,3942.1,1.7605235]
[1761377118519,0.4541,3942.4,3942.3,0.6248]
[1761377118717,0.313,3942.7,3942.6,1.0881]
[1761377118920,0.313,3942.7,3942.6,1.75697161]
[1761377119222,3.03110759,3942.7,3942.6,1.75697161]
[1761377119421,3.33740759,3942.7,3942.6,1.75697161]
[1761377119623,1.0734,3942.7,3942.6,1.75697161]
[1761377120629,0.7671,3942.7,3942.6,1.75697161]
[1761377121121,1.0734,3942.7,3942.6,1.29367161]
[1761377121326,1.0734,3942.7,3942.6,1.75697161]
[1761377123628,1.0734,3942.7,3942.6,0.98767161]
[1761377124126,3.33740759,3942.7,3942.6,0.66887161]
[1761377124428,3.33740759,3942.7,3942.1,1.76908964]
[1761377124429,1.0734,3942.2,3942.1,1.76908964]
[1761377124637,1.0734,3942.2,3942.1,2.43823986]
[1761377126334,1.0734,3942.2,3942.1,1.75943902]
[1761377126632,1.0734,3942.2,3942.1,1.29613902]
[1761377127233,1.0734,3942.2,3942.1,1.66956851]
[1761377127630,1.0734,3942.2,3942.1,2.43886851]
[1761377128926,3.33740759,3942.2,3942.1,1.66956851]
[1761377129835,3.33740759,3942.2,3942.1,1.35076851]
[1761377130923,3.33740759,3942.2,3942.1,0.67133902]
[1761377131322,3.33740759,3942.2,3942.1,1.66956851]
[1761377133631,3.33740759,3942.2,3942.1,1.35076851]
[1761377134441,3.33740759,3942.2,3942.1,0.67133902]
[1761377134930,3.33740759,3942.2,3942.1,0.0021888]
[1761377135436,3.33740759,3942.2,3942.1,1e-08]
[1761377141438,11.33740759,3942.2,3942.1,1e-08]
[1761377142037,3.33740759,3942.2,3942.1,1e-08]
[1761377142743,12.38940759,3942.2,3942.1,1e-08]
[1761377153643,10.1254,3942.2,3942.1,1e-08]
[1761377154451,12.38940759,3942.2,3942.1,1e-08]
[1761377161063,3.33740759,3942.2,3942.1,1.61358174]
[1761377161264,0.7671,3942.2,3942.1,1.61358174]
[1761377163365,0.7671,3942.2,3942.1,2.2933175]
[1761377166059,0.4541,3942.2,3942.1,2.2933175]
[1761377167464,0.6527,3942.4,3942.2,0.4156]
[1761377167764,2.91670759,3942.4,3942.3,1.61358173]
[1761377167964,0.6527,3942.4,3942.3,1.61358173]
[1761377168966,3.4803,3942.9,3942.8,0.9159]
[1761377169163,3.4803,3942.9,3942.8,1.58408173]
[1761377169660,3.8534,3942.9,3942.8,1.58408173]
[1761377169859,3.8534,3942.9,3942.3,1.35531192]
[1761377169860,6.36480759,3942.9,3942.3,0.67973576]
[1761377170068,0.893,3942.5,3942.4,2.2628535]
[1761377170259,0.893,3942.5,3942.4,1.58311774]
[1761377170666,0.893,3942.5,3942.4,2.2628535]
[1761377171961,0.6456,3942.5,3942.4,2.2628535]
[1761377172159,0.6456,3942.5,3942.4,4.79091774]
[1761377172360,0.6456,3942.5,3942.4,5.4702003]
[1761377172660,9.2995,3942.8,3942.4,5.4702003]
[1761377172964,0.2725,3942.7,3942.6,0.9159]
[1761377173261,0.5199,3942.7,3942.6,1.58311774]
[1761377173464,0.893,3942.7,3942.6,1.58311774]
[1761377176766,0.6456,3942.7,3942.6,1.58311774]
[1761377177157,7.92,3942.8,3942.7,0.4014]
[1761377177466,8.1925,3942.8,3942.7,1.58311774]
[1761377178561,10.45650759,3942.8,3942.7,1.58311774]
[1761377179165,10.82960759,3942.8,3942.7,1.58311774]
[1761377179365,10.82960759,3942.8,3942.7,1.32211774]
[1761377180565,0.3731,3942.7,3942.5,0.4014]
[1761377180765,3.15700759,3942.6,3942.5,0.4014]
[1761377181362,3.15700759,3942.6,3942.5,1.3213338]
[1761377181958,3.15700759,3942.6,3942.5,1.0678338]
[1761377182358,0.5199,3942.4,3942.3,0.4014]
[1761377182563,0.893,3942.4,3942.3,1.32146956]
[1761377182766,3.15700759,3942.4,3942.3,1.32146956]
[1761377184071,3.15700759,3942.4,3942.3,1.58246956]
[1761377185070,3.15700759,3942.4,3942.3,1.32146956]
[1761377187074,3.15700759,3942.4,3942.3,1.06796956]
[1761377187273,3.15700759,3942.4,3942.3,0.66656956]
[1761377187976,3.15700759,3942.4,3942.3,1.06796956]
[1761377188278,12.16900759,3942.4,3942.3,1.06796956]
[1761377189079,12.16900759,3942.4,3942.3,0.66656956]
[1761377190373,12.16900759,3942.4,3942.1,1e-08]
[1761377190374,0.3731,3942.3,3942.1,1e-08]
[1761377190579,2.26400759,3942.2,3942.1,1e-08]
[1761377197382,2.78390759,3942.2,3942.1,0.40140001]
[1761377197581,2.78390759,3942.2,3942.1,0.65490001]
[1761377197582,12.16200759,3942.2,3942.1,0.65490001]
[1761377197877,3.4734,3942.5,3942.2,0.4104]
[1761377198076,11.53560759,3942.4,3942.3,0.9308]
[1761377199380,2.26400759,3942.4,3942.3,0.9308]
[1761377199773,9.006,3942.8,3942.7,0.5204]
[1761377199974,9.006,3942.8,3942.7,0.9308]
[1761377200382,9.2716,3942.8,3942.7,0.9308]
[1761377200882,0.2656,3942.8,3942.7,0.9308]
[1761377201088,12.4814,3942.9,3942.8,0.9308]
[1761377201380,14.74540759,3942.9,3942.8,0.9308]
[1761377202071,15.40440759,3942.9,3942.8,0.9308]
[1761377202274,15.00830759,3942.9,3942.8,0.9308]
[1761377203482,15.00830759,3942.9,3942.8,1.59820276]
[1761377203680,0.9246,3942.3,3942.2,0.67928256]
[1761377203879,9.005,3942.3,3942.1,0.93080001]
[1761377204183,0.5285,3942.7,3942.6,0.9308]
[1761377204386,11.80650759,3942.7,3942.6,0.9308]
[1761377205980,12.20260759,3942.7,3942.6,0.4104]
[1761377207582,12.20260759,3942.7,3942.3,3.88734532]
[1761377207583,0.5285,3942.5,3942.4,0.4104]
[1761377207888,0.9246,3942.5,3942.4,0.68]
[1761377208087,3.18860759,3942.5,3942.4,0.68]
[1761377213391,12.19860759,3942.5,3942.4,0.68]
[1761377215588,12.19860759,3942.5,3942.4,1.34484813]
[1761377216591,12.19860759,3942.5,3942.4,1.59564813]
[1761377220292,2.92300759,3942.5,3942.4,1.59564813]
[1761377220494,1.36742239,3943.6,3942.4,1.59564813]
[1761377220495,0.4994,3943.6,3943.5,1.063]
[1761377220997,2.16862773,3943.6,3943.5,1.063]
[1761377221184,2.16862773,3943.6,3943.5,1.72719184]
[1761377221388,2.16862773,3943.6,3943.5,1.063]
[1761377222191,0.4994,3943.6,3943.5,1.063]
[1761377222496,0.2536,3943.6,3943.5,1.72681263]
[1761377222995,9.621,3944.0,3943.6,0.3707]
[1761377223198,9.8668,3944.0,3943.9,0.6344]
[1761377223601,11.53602773,3944.0,3943.9,0.6344]
[1761377225495,11.53602773,3944.0,3943.9,0.3707]
[1761377226188,0.3664,3943.9,3943.6,0.3707]
[1761377226389,0.8658,3943.7,3943.6,0.6344]
[1761377226594,2.53502773,3943.7,3943.6,0.9042]
[1761377228402,9.5182,3944.0,3943.7,0.4039]
[1761377228601,9.5182,3944.0,3943.9,0.9163]
[1761377228801,9.8999,3944.0,3943.9,0.9163]
[1761377229005,11.56912773,3944.0,3943.9,0.9163]
[1761377229206,11.56912773,3944.0,3943.9,0.6494]
[1761377229506,11.56912773,3944.0,3943.9,0.4039]
[1761377230801,11.56912773,3944.0,3943.5,0.4043]
[1761377231007,0.8989,3943.7,3943.6,1.31273224]
[1761377231505,2.56812773,3943.7,3943.6,1.06723224]
[1761377231800,2.56812773,3943.7,3943.6,0.66333224]
[1761377232003,0.8989,3943.5,3943.4,0.4039]
[1761377232207,0.8989,3943.5,3943.4,1.31269667]
[1761377232507,2.56812773,3943.5,3943.4,1.31269667]
[1761377232706,2.56812773,3943.5,3943.4,1.06719667]
[1761377233608,2.56812773,3943.5,3943.4,1.31269667]
[1761377243716,2.56812773,3943.5,3943.4,1.06719667]
[1761377245612,2.56812773,3943.5,3943.4,0.66329667]
[1761377245807,2.56812773,3943.5,3943.2,0.4039]
[1761377245808,0.5172,3943.3,3943.2,0.4039]
[1761377246016,2.56812773,3943.3,3943.2,1.31387456]
[1761377246217,2.56812773,3943.3,3943.2,1.58077456]
[1761377248615,2.56812773,3943.3,3943.2,1.31387456]
[1761377256733,2.56812773,3943.3,3943.2,1.06837456]
[1761377256938,2.56812773,3943.3,3943.2,1.31387456]
[1761377257233,2.56812773,3943.3,3943.2,1.58077456]
[1761377266539,0.8989,3943.3,3943.2,1.58077456]
[1761377266740,2.56812773,3943.3,3943.2,1.58077456]
[1761377268030,1.93322773,3943.3,3943.2,1.58077456]
[1761377269646,2.46942773,3943.3,3943.2,1.58077456]
[1761377270144,2.16512773,3943.3,3943.2,1.58077456]